fUSD/lending_fUSD_20250112
["ID","MTS","AMOUNT","RATE_DAILY","PERIOD"]
[348662926,1736703040036,-226.49726388,9.312e-05,2]
[348662927,1736703040045,-500.0,9.312e-05,2]
[348662928,1736703040055,-500.0,9.312e-05,2]
[348662929,1736703040064,-570.15,9.312e-05,2]
[348662930,1736703040074,-500.0,9.312e-05,2]
[348662931,1736703040084,-653.93,9.312e-05,2]
[348662932,1736703040093,-500.0,9.312e-05,2]
[348662933,1736703040103,-500.0,9.312e-05,2]
[348662934,1736703040112,-399.5161932,9.312e-05,2]
[348662935,1736703040122,-500.0,9.312e-05,2]
[348662936,1736703040131,-516.42,9.312e-05,2]
[348662937,1736703040140,-500.0,9.312e-05,2]
[348662938,1736703040149,-510.27,9.312e-05,2]
[348662939,1736703040158,-500.0,9.312e-05,2]
[348662940,1736703040168,-500.0,9.312e-05,2]
[348662941,1736703040178,-518.86,9.312e-05,2]
[348662943,1736703040187,-500.0,9.312e-05,2]
[348662945,1736703040197,-500.0,9.312e-05,2]
[348662947,1736703040206,-500.0,9.312e-05,2]
[348662948,1736703040215,-564.98,9.312e-05,2]
[348662949,1736703040225,-500.0,9.312e-05,2]
[348662950,1736703040234,-500.0,9.312e-05,2]
[348662951,1736703040243,-500.0,9.312e-05,2]
[348662952,1736703040252,-500.0,9.312e-05,2]
[348662953,1736703040262,-550.16,9.312e-05,2]
[348662954,1736703040271,-662.99,9.312e-05,2]
[348662955,1736703040281,-500.0,9.312e-05,2]
[348662956,1736703040290,-500.0,9.312e-05,2]
[348662957,1736703040302,-500.0,9.312e-05,2]
[348662958,1736703040313,-500.0,9.312e-05,2]
[348662959,1736703040322,-773.0,9.312e-05,2]
[348662960,1736703040331,-618.82,9.312e-05,2]
[348662961,1736703040343,-1018.4,9.312e-05,2]
[348662962,1736703040352,-500.0,9.312e-05,2]
[348662963,1736703040361,-500.0,9.312e-05,2]
[348662964,1736703040372,-500.0,9.312e-05,2]
[348662965,1736703040383,-500.0,9.312e-05,2]
[348662966,1736703040392,-500.0,9.312e-05,2]
[348662967,1736703040402,-520.44,9.312e-05,2]
[348662968,1736703040411,-551.87,9.312e-05,2]
[348662969,1736703040420,-500.0,9.312e-05,2]
[348662970,1736703040430,-500.0,9.312e-05,2]
[348662971,1736703040439,-500.0,9.312e-05,2]
[348662972,1736703040448,-621.66,9.312e-05,2]
[348662973,1736703040457,-500.0,9.312e-05,2]
[348662974,1736703040468,-500.0,9.312e-05,2]
[348662975,1736703040479,-741.52,9.312e-05,2]
[348662976,1736703040492,-715.09,9.312e-05,2]
[348662977,1736703040502,-695.27,9.312e-05,2]
[348662978,1736703040512,-610.33,9.312e-05,2]
[348662979,1736703040523,-503.36,9.312e-05,2]
[348662980,1736703040534,-700.77,9.312e-05,2]
[348662981,1736703040546,-500.0,9.312e-05,2]
[348662982,1736703040557,-500.0,9.312e-05,2]
[348662983,1736703040567,-622.6,9.312e-05,2]
[348662984,1736703040577,-500.0,9.312e-05,2]
[348662985,1736703040588,-926.15,9.312e-05,2]
[348662986,1736703040598,-594.52,9.312e-05,2]
[348662987,1736703040609,-835.47,9.312e-05,2]
[348662988,1736703040620,-500.0,9.312e-05,2]
[348662989,1736703040630,-984.26,9.312e-05,2]
[348662990,1736703040639,-539.64570756,9.332e-05,2]
[348662991,1736703040649,-1118.99807629,9.408e-05,2]
[348662992,1736703040660,-1118.99807628,9.408e-05,2]
[348662993,1736703040671,-500.0,9.544e-05,2]
[348662994,1736703040681,-500.0,9.544e-05,2]
[348662995,1736703040691,-500.0,9.544e-05,2]
[348662996,1736703040701,-500.0,9.544e-05,2]
[348662997,1736703040711,-500.0,9.544e-05,2]
[348662998,1736703040720,-611.99,9.544e-05,2]
[348662999,1736703040730,-669.44,9.544e-05,2]
[348663000,1736703040740,-500.0,9.544e-05,2]
[348663001,1736703040749,-500.0,9.544e-05,2]
[348663002,1736703040760,-3303.27,9.544e-05,2]
[348663003,1736703040771,-1466.88,9.544e-05,2]
[348663004,1736703040781,-1828.88,9.544e-05,2]
[348663005,1736703040791,-500.0,9.544e-05,2]
[348663006,1736703040800,-525.02,9.544e-05,2]
[348663007,1736703040810,-500.0,9.544e-05,2]
[348663008,1736703040818,-500.0,9.545e-05,2]
[348663009,1736703040828,-547.77,9.545e-05,2]
[348663010,1736703040837,-658.96,9.545e-05,2]
[348663011,1736703040846,-597.77,9.545e-05,2]
[348663012,1736703040855,-471.72321828,9.545e-05,2]
[348663013,1736703040865,-542.67,9.545e-05,2]
[348663014,1736703040875,-659.84,9.545e-05,2]
[348663015,1736703040884,-508.07,9.545e-05,2]
[348663016,1736703040894,-587.81,9.545e-05,2]
[348663017,1736703040903,-581.7,9.545e-05,2]
[348663018,1736703040912,-500.0,9.545e-05,2]
[348663019,1736703040922,-559.72,9.545e-05,2]
[348663020,1736703040931,-500.0,9.545e-05,2]
[348663021,1736703040941,-500.0,9.545e-05,2]
[348663022,1736703040950,-500.0,9.545e-05,2]
[348663023,1736703040960,-500.0,9.545e-05,2]
[348663024,1736703040970,-500.0,9.545e-05,2]
[348663025,1736703040980,-1023.19,9.545e-05,2]
[348663026,1736703040990,-500.0,9.545e-05,2]
[348663027,1736703041000,-500.0,9.545e-05,2]
[348663028,1736703041010,-565.5,9.545e-05,2]
[348663029,1736703041020,-619.49,9.545e-05,2]
[348663030,1736703041029,-560.57,9.545e-05,2]
[348663031,1736703041039,-500.0,9.545e-05,2]
[348663032,1736703041049,-670.32,9.545e-05,2]
[348663033,1736703041059,-500.0,9.545e-05,2]
[348663034,1736703041071,-500.0,9.545e-05,2]
[348663035,1736703041082,-500.0,9.545e-05,2]
[348663036,1736703041091,-500.0,9.545e-05,2]
[348663037,1736703041101,-500.0,9.545e-05,2]
[348663038,1736703041111,-500.0,9.545e-05,2]
[348663039,1736703041120,-552.81,9.545e-05,2]
[348663040,1736703041130,-789.57,9.545e-05,2]
[348663041,1736703041139,-500.0,9.545e-05,2]
[348663042,1736703041149,-658.01,9.545e-05,2]
[348663043,1736703041159,-737.03,9.545e-05,2]
[348663044,1736703041169,-500.0,9.545e-05,2]
[348663045,1736703041179,-509.85,9.545e-05,2]
[348663046,1736703041191,-786.1,9.545e-05,2]
[348663047,1736703041201,-1163.59,9.545e-05,2]
[348663048,1736703041210,-500.0,9.545e-05,2]
[348663049,1736703041220,-698.98,9.545e-05,2]
[348663050,1736703041231,-580.87,9.545e-05,2]
[348663051,1736703041241,-268.23206531,9.545e-05,2]
[348663052,1736703041252,-894.48,9.545e-05,2]
[348663053,1736703041261,-616.73,9.545e-05,2]
[348663054,1736703041271,-1827.21,9.545e-05,2]
[348663055,1736703041280,-500.0,9.545e-05,2]
[348663056,1736703041289,-500.0,9.545e-05,2]
[348663057,1736703041300,-584.66,9.545e-05,2]
[348663058,1736703041313,-1155.01,9.545e-05,2]
[348663059,1736703041322,-500.0,9.545e-05,2]
[348663060,1736703041334,-500.0,9.545e-05,2]
[348663061,1736703041345,-507.09,9.545e-05,2]
[348663062,1736703041356,-801.41,9.545e-05,2]
[348663063,1736703041366,-500.0,9.545e-05,2]
[348663064,1736703041377,-551.87,9.545e-05,2]
[348663065,1736703041386,-1372.05,9.545e-05,2]
[348663066,1736703041396,-500.0,9.545e-05,2]
[348663067,1736703041406,-500.0,9.545e-05,2]
[348663068,1736703041415,-4871.73,9.545e-05,2]
[348663069,1736703041425,-670.542802,9.545e-05,2]
[348663070,1736703041435,-576.13,9.545e-05,2]
[348663071,1736703041446,-500.0,9.545e-05,2]
[348663072,1736703041455,-521.02,9.545e-05,2]
[348663073,1736703041465,-2101.69,9.545e-05,2]
[348663074,1736703041474,-711.558222,9.545e-05,2]
[348663075,1736703041484,-2908.34,9.545e-05,2]
[348663076,1736703041495,-1015.72,9.545e-05,2]
[348663077,1736703041505,-500.0,9.545e-05,2]
[348663078,1736703041515,-560.68,9.545e-05,2]
[348663079,1736703041524,-756.21,9.545e-05,2]
[348663080,1736703041534,-500.0,9.545e-05,2]
[348663081,1736703041543,-500.0,9.545e-05,2]
[348663082,1736703041553,-2379.73,9.545e-05,2]
[348663083,1736703041562,-616.86,9.545e-05,2]
[348663084,1736703041571,-1373.72,9.545e-05,2]
[348663085,1736703041580,-709.55,9.545e-05,2]
[348663086,1736703041589,-500.0,9.545e-05,2]
[348663087,1736703041599,-2445.35,9.545e-05,2]
[348663088,1736703041608,-500.0,9.545e-05,2]
[348663089,1736703041617,-621.67,9.545e-05,2]
[348663090,1736703041627,-805.59,9.545e-05,2]
[348663091,1736703041636,-836.31,9.545e-05,2]
[348663092,1736703041645,-640.04,9.545e-05,2]
[348663093,1736703041654,-1631.81,9.545e-05,2]
[348663094,1736703041663,-500.0,9.545e-05,2]
[348663095,1736703041673,-500.0,9.545e-05,2]
[348663096,1736703041682,-613.67,9.545e-05,2]
[348663097,1736703041692,-616.5,9.545e-05,2]
[348663098,1736703041702,-1953.19,9.545e-05,2]
[348663099,1736703041713,-654.56,9.545e-05,2]
[348663100,1736703041722,-1399.66,9.545e-05,2]
[348663101,1736703041733,-500.0,9.545e-05,2]
[348663102,1736703041743,-500.0,9.545e-05,2]
[348663103,1736703041752,-1365.16,9.545e-05,2]
[348663104,1736703041761,-749.54,9.545e-05,2]
[348663105,1736703041770,-1180.65,9.545e-05,2]
[348663106,1736703041780,-500.0,9.545e-05,2]
[348663107,1736703041789,-1106.75,9.545e-05,2]
[348663108,1736703041798,-837.94,9.545e-05,2]
[348663109,1736703041807,-500.0,9.545e-05,2]
[348663110,1736703041817,-926.8,9.545e-05,2]
[348663111,1736703041826,-2029.55,9.545e-05,2]
[348663112,1736703041835,-547.49,9.545e-05,2]
[348663113,1736703041845,-1448.07,9.545e-05,2]
[348663114,1736703041854,-500.0,9.545e-05,2]
[348663115,1736703041863,-500.0,9.545e-05,2]
[348663116,1736703041872,-748.44,9.545e-05,2]
[348663117,1736703041882,-807.57,9.545e-05,2]
[348663118,1736703041891,-677.77,9.545e-05,2]
[348663119,1736703041900,-500.0,9.545e-05,2]
[348663120,1736703041909,-1113.6,9.545e-05,2]
[348663121,1736703041918,-500.0,9.545e-05,2]
[348663122,1736703041927,-669.65,9.545e-05,2]
[348663123,1736703041936,-500.0,9.545e-05,2]
[348663124,1736703041945,-620.16,9.545e-05,2]
[348663125,1736703041954,-1008.51,9.545e-05,2]
[348663126,1736703041963,-500.0,9.545e-05,2]
[348663127,1736703041972,-500.0,9.545e-05,2]
[348663128,1736703041981,-1807.92,9.545e-05,2]
[348663129,1736703041989,-791.56,9.545e-05,2]
[348663130,1736703041998,-520.56,9.545e-05,2]
[348663131,1736703042008,-3328.33,9.545e-05,2]
[348663132,1736703042017,-838.74,9.545e-05,2]
[348663133,1736703042027,-2200.99,9.546e-05,2]
[348663134,1736703042035,-909.39,9.546e-05,2]
[348663135,1736703042050,-2362.14,9.546e-05,2]
[348663136,1736703042061,-2863.97,9.546e-05,2]
[348663137,1736703042070,-500.0,9.546e-05,2]
[348663138,1736703042081,-1514.12,9.546e-05,2]
[348663139,1736703042093,-2538.07,9.546e-05,2]
[348663140,1736703042102,-694.06,9.546e-05,2]
[348663141,1736703042112,-1286.97,9.546e-05,2]
[348663142,1736703042122,-512.71,9.546e-05,2]
[348663143,1736703042132,-1140.14,9.546e-05,2]
[348663144,1736703042142,-1065.07,9.546e-05,2]
[348663145,1736703042152,-727.92,9.546e-05,2]
[348663146,1736703042163,-931.68,9.546e-05,2]
[348663147,1736703042174,-1180.88,9.546e-05,2]
[348663148,1736703042399,-1157.34,9.546e-05,2]
[348663149,1736703042434,-1199.82,9.546e-05,2]
[348663150,1736703042443,-840.95,9.546e-05,2]
[348663151,1736703042452,-855.57,9.546e-05,2]
[348663152,1736703042462,-1855.45,9.546e-05,2]
[348663153,1736703042471,-1239.35,9.546e-05,2]
[348663154,1736703042480,-879.97,9.546e-05,2]
[348663155,1736703042490,-1510.22,9.546e-05,2]
[348663156,1736703042499,-1411.8,9.546e-05,2]
[348663157,1736703042508,-2123.72,9.546e-05,2]
[348663158,1736703042517,-1358.58,9.546e-05,2]
[348663159,1736703042526,-500.0,9.546e-05,2]
[348663160,1736703042535,-2079.2,9.546e-05,2]
[348663161,1736703042544,-2636.99,9.546e-05,2]
[348663162,1736703042553,-1021.95,9.546e-05,2]
[348663163,1736703042562,-4247.6,9.546e-05,2]
[348663164,1736703042571,-1316.2,9.546e-05,2]
[348663165,1736703042580,-995.58,9.546e-05,2]
[348663167,1736703042590,-5872.12,9.546e-05,2]
[348663169,1736703042599,-500.0,9.546e-05,2]
[348663171,1736703042608,-1593.67,9.546e-05,2]
[348663172,1736703042617,-1433.03,9.546e-05,2]
[348663174,1736703042627,-1000.0,9.546e-05,2]
[348663175,1736703042636,-3088.86,9.547e-05,2]
[348663176,1736703042646,-500.0,9.586e-05,2]
[348663177,1736703042655,-500.0,9.586e-05,2]
[348663178,1736703042664,-500.0,9.586e-05,2]
[348663180,1736703042673,-500.0,9.586e-05,2]
[348663182,1736703042684,-500.0,9.586e-05,2]
[348663183,1736703042694,-500.0,9.586e-05,2]
[348663184,1736703042705,-570.15,9.586e-05,2]
[348663186,1736703042715,-500.0,9.586e-05,2]
[348663188,1736703042726,-653.93,9.586e-05,2]
[348663189,1736703042736,-500.0,9.586e-05,2]
[348663190,1736703042745,-500.0,9.586e-05,2]
[348663191,1736703042755,-500.0,9.586e-05,2]
[348663192,1736703042764,-516.42,9.586e-05,2]
[348663193,1736703042775,-500.0,9.586e-05,2]
[348663194,1736703042784,-510.27,9.586e-05,2]
[348663195,1736703042794,-500.0,9.586e-05,2]
[348663196,1736703042804,-500.0,9.586e-05,2]
[348663197,1736703042814,-518.86,9.586e-05,2]
[348663198,1736703042825,-500.0,9.586e-05,2]
[348663199,1736703042835,-389.48304416,9.586e-05,2]
[348663200,1736703042844,-500.0,9.586e-05,2]
[348663201,1736703042854,-564.98,9.586e-05,2]
[348663202,1736703042864,-500.0,9.586e-05,2]
[348663203,1736703042876,-500.0,9.586e-05,2]
[348663204,1736703042886,-500.0,9.586e-05,2]
[348663205,1736703042897,-500.0,9.586e-05,2]
[348663206,1736703042906,-550.16,9.586e-05,2]
[348663207,1736703042916,-662.99,9.586e-05,2]
[348663208,1736703042926,-500.0,9.586e-05,2]
[348663209,1736703042936,-500.0,9.586e-05,2]
[348663210,1736703042946,-500.0,9.586e-05,2]
[348663211,1736703042956,-500.0,9.586e-05,2]
[348663212,1736703042965,-773.0,9.586e-05,2]
[348663213,1736703042975,-618.82,9.586e-05,2]
[348663214,1736703042985,-1018.4,9.586e-05,2]
[348663215,1736703042994,-500.0,9.586e-05,2]
[348663216,1736703043004,-500.0,9.586e-05,2]
[348663217,1736703043013,-500.0,9.586e-05,2]
[348663218,1736703043023,-500.0,9.586e-05,2]
[348663219,1736703043032,-619.68308618,9.586e-05,2]
[348663220,1736703043042,-520.44,9.586e-05,2]
[348663221,1736703043051,-551.87,9.586e-05,2]
[348663222,1736703043061,-500.0,9.586e-05,2]
[348663223,1736703043071,-500.0,9.586e-05,2]
[348663224,1736703043083,-500.0,9.586e-05,2]
[348663225,1736703043094,-621.66,9.586e-05,2]
[348663226,1736703043104,-500.0,9.586e-05,2]
[348663227,1736703043114,-500.0,9.586e-05,2]
[348663228,1736703043124,-741.52,9.586e-05,2]
[348663229,1736703043133,-715.09,9.586e-05,2]
[348663230,1736703043143,-695.27,9.586e-05,2]
[348663231,1736703043152,-610.33,9.586e-05,2]
[348663232,1736703043161,-503.36,9.586e-05,2]
[348663233,1736703043171,-700.77,9.586e-05,2]
[348663234,1736703043181,-500.0,9.586e-05,2]
[348663235,1736703043190,-500.0,9.586e-05,2]
[348663236,1736703043200,-622.6,9.586e-05,2]
[348663237,1736703043210,-500.0,9.586e-05,2]
[348663238,1736703043220,-926.15,9.586e-05,2]
[348663239,1736703043229,-594.52,9.586e-05,2]
[348663240,1736703043238,-835.47,9.586e-05,2]
[348663241,1736703043248,-500.0,9.586e-05,2]
[348663242,1736703043257,-984.26,9.586e-05,2]
[348663243,1736703043267,-500.0,9.589e-05,2]
[348663244,1736703043277,-381.96,9.589e-05,2]
[348663245,1736703043287,-539.64570756,9.666e-05,2]
[348663246,1736703043297,-500.0,9.818e-05,2]
[348663247,1736703043306,-500.0,9.818e-05,2]
[348663248,1736703043316,-500.0,9.818e-05,2]
[348663249,1736703043330,-500.0,9.818e-05,2]
[348663250,1736703043340,-500.0,9.818e-05,2]
[348663252,1736703043350,-611.99,9.818e-05,2]
[348663254,1736703043359,-669.44,9.818e-05,2]
[348663256,1736703043369,-500.0,9.818e-05,2]
[348663258,1736703043379,-500.0,9.818e-05,2]
[348663259,1736703043388,-3303.27,9.818e-05,2]
[348663262,1736703043398,-1466.88,9.818e-05,2]
[348663264,1736703043407,-1828.88,9.818e-05,2]
[348663265,1736703043417,-500.0,9.818e-05,2]
[348663267,1736703043426,-525.02,9.818e-05,2]
[348663270,1736703043435,-500.0,9.818e-05,2]
[348663272,1736703043445,-500.0,9.819e-05,2]
[348663274,1736703043454,-547.77,9.819e-05,2]
[348663276,1736703043464,-658.96,9.819e-05,2]
[348663277,1736703043473,-597.77,9.819e-05,2]
[348663281,1736703043483,-542.67,9.819e-05,2]
[348663284,1736703043492,-659.84,9.819e-05,2]
[348663287,1736703043502,-508.07,9.819e-05,2]
[348663291,1736703043511,-587.81,9.819e-05,2]
[348663294,1736703043521,-581.7,9.819e-05,2]
[348663297,1736703043530,-500.0,9.819e-05,2]
[348663300,1736703043539,-559.72,9.819e-05,2]
[348663303,1736703043548,-500.0,9.819e-05,2]
[348663306,1736703043559,-500.0,9.819e-05,2]
[348663309,1736703043568,-500.0,9.819e-05,2]
[348663312,1736703043577,-500.0,9.819e-05,2]
[348663315,1736703043587,-500.0,9.819e-05,2]
[348663317,1736703043596,-500.0,9.819e-05,2]
[348663319,1736703043605,-1023.19,9.819e-05,2]
[348663321,1736703043614,-500.0,9.819e-05,2]
[348663323,1736703043623,-565.5,9.819e-05,2]
[348663325,1736703043633,-619.49,9.819e-05,2]
[348663327,1736703043642,-560.57,9.819e-05,2]
[348663329,1736703043651,-500.0,9.819e-05,2]
[348663331,1736703043660,-670.32,9.819e-05,2]
[348663333,1736703043670,-500.0,9.819e-05,2]
[348663335,1736703043679,-500.0,9.819e-05,2]
[348663337,1736703043688,-500.0,9.819e-05,2]
[348663339,1736703043697,-500.0,9.819e-05,2]
[348663341,1736703043707,-500.0,9.819e-05,2]
[348663343,1736703043716,-552.81,9.819e-05,2]
[348663344,1736703043725,-152.40238999,9.819e-05,2]
[348663347,1736703043734,-789.57,9.819e-05,2]
[348663348,1736703043744,-658.01,9.819e-05,2]
[348663350,1736703043754,-737.03,9.819e-05,2]
[348663353,1736703043763,-500.0,9.819e-05,2]
[348663355,1736703043773,-509.85,9.819e-05,2]
[348663357,1736703043782,-786.1,9.819e-05,2]
[348663359,1736703043791,-1163.59,9.819e-05,2]
[348663361,1736703043800,-500.0,9.819e-05,2]
[348663363,1736703043810,-698.98,9.819e-05,2]
[348663365,1736703043819,-580.87,9.819e-05,2]
[348663367,1736703043828,-894.48,9.819e-05,2]
[348663369,1736703043838,-616.73,9.819e-05,2]
[348663370,1736703043848,-1827.21,9.819e-05,2]
[348663373,1736703043858,-500.0,9.819e-05,2]
[348663375,1736703043867,-500.0,9.819e-05,2]
[348663377,1736703043877,-584.66,9.819e-05,2]
[348663379,1736703043886,-1155.01,9.819e-05,2]
[348663381,1736703043896,-500.0,9.819e-05,2]
[348663383,1736703043906,-500.0,9.819e-05,2]
[348663385,1736703043916,-507.09,9.819e-05,2]
[348663387,1736703043926,-551.87,9.819e-05,2]
[348663389,1736703043936,-801.41,9.819e-05,2]
[348663391,1736703043945,-1372.05,9.819e-05,2]
[348663393,1736703043954,-500.0,9.819e-05,2]
[348663395,1736703043963,-500.0,9.819e-05,2]
[348663397,1736703043973,-4871.73,9.819e-05,2]
[348663398,1736703043982,-670.542802,9.819e-05,2]
[348663400,1736703043991,-576.13,9.819e-05,2]
[348663403,1736703044000,-500.0,9.819e-05,2]
[348663405,1736703044010,-521.02,9.819e-05,2]
[348663407,1736703044019,-2101.69,9.819e-05,2]
[348663408,1736703044029,-711.558222,9.819e-05,2]
[348663409,1736703044039,-2908.34,9.819e-05,2]
[348663410,1736703044048,-500.0,9.819e-05,2]
[348663411,1736703044058,-1015.72,9.819e-05,2]
[348663412,1736703044067,-560.68,9.819e-05,2]
[348663413,1736703044077,-756.21,9.819e-05,2]
[348663414,1736703044088,-500.0,9.819e-05,2]
[348663415,1736703044098,-500.0,9.819e-05,2]
[348663416,1736703044109,-2379.73,9.819e-05,2]
[348663417,1736703044120,-616.86,9.819e-05,2]
[348663418,1736703044129,-1373.72,9.819e-05,2]
[348663419,1736703044139,-709.55,9.819e-05,2]
[348663420,1736703044148,-500.0,9.819e-05,2]
[348663421,1736703044158,-2445.35,9.819e-05,2]
[348663422,1736703044168,-500.0,9.819e-05,2]
[348663423,1736703044178,-621.67,9.819e-05,2]
[348663424,1736703044187,-805.59,9.819e-05,2]
[348663425,1736703044197,-836.31,9.819e-05,2]
[348663426,1736703044206,-640.04,9.819e-05,2]
[348663427,1736703044216,-1631.81,9.819e-05,2]
[348663428,1736703044227,-500.0,9.819e-05,2]
[348663429,1736703044236,-500.0,9.819e-05,2]
[348663430,1736703044245,-613.67,9.819e-05,2]
[348663432,1736703044254,-616.5,9.819e-05,2]
[348663433,1736703044265,-1953.19,9.819e-05,2]
[348663434,1736703044276,-654.56,9.819e-05,2]
[348663435,1736703044286,-1399.66,9.819e-05,2]
[348663436,1736703044296,-500.0,9.819e-05,2]
[348663437,1736703044306,-500.0,9.819e-05,2]
[348663438,1736703044316,-1365.16,9.819e-05,2]
[348663439,1736703044333,-749.54,9.819e-05,2]
[348663440,1736703044342,-1180.65,9.819e-05,2]
[348663441,1736703044351,-500.0,9.819e-05,2]
[348663442,1736703044361,-1106.75,9.819e-05,2]
[348663443,1736703044370,-837.94,9.819e-05,2]
[348663444,1736703044381,-500.0,9.819e-05,2]
[348663445,1736703044391,-926.8,9.819e-05,2]
[348663446,1736703044401,-2029.55,9.819e-05,2]
[348663447,1736703044411,-547.49,9.819e-05,2]
[348663448,1736703044420,-1448.07,9.819e-05,2]
[348663449,1736703044430,-301.97194434,9.819e-05,2]
[348663450,1736703044439,-500.0,9.819e-05,2]
[348663451,1736703044448,-748.44,9.819e-05,2]
[348663452,1736703044458,-807.57,9.819e-05,2]
[348663453,1736703044468,-677.77,9.819e-05,2]
[348663454,1736703044477,-500.0,9.819e-05,2]
[348663455,1736703044486,-1113.6,9.819e-05,2]
[348663456,1736703044495,-500.0,9.819e-05,2]
[348663457,1736703044505,-669.65,9.819e-05,2]
[348663458,1736703044514,-500.0,9.819e-05,2]
[348663459,1736703044523,-620.16,9.819e-05,2]
[348663460,1736703044532,-1008.51,9.819e-05,2]
[348663461,1736703044541,-500.0,9.819e-05,2]
[348663462,1736703044550,-500.0,9.819e-05,2]
[348663463,1736703044559,-1807.92,9.819e-05,2]
[348663464,1736703044568,-791.56,9.819e-05,2]
[348663465,1736703044577,-520.56,9.819e-05,2]
[348663466,1736703044586,-3328.33,9.819e-05,2]
[348663467,1736703044595,-838.74,9.819e-05,2]
[348663468,1736703044603,-2200.99,9.82e-05,2]
[348663469,1736703044612,-909.39,9.82e-05,2]
[348663470,1736703044621,-2362.14,9.82e-05,2]
[348663471,1736703044631,-2863.97,9.82e-05,2]
[348663472,1736703044640,-500.0,9.82e-05,2]
[348663473,1736703044649,-1514.12,9.82e-05,2]
[348663474,1736703044658,-2538.07,9.82e-05,2]
[348663475,1736703044668,-694.06,9.82e-05,2]
[348663476,1736703044676,-1286.97,9.82e-05,2]
[348663477,1736703044686,-512.71,9.82e-05,2]
[348663478,1736703044695,-1140.14,9.82e-05,2]
[348663479,1736703044704,-1065.07,9.82e-05,2]
[348663480,1736703044713,-727.92,9.82e-05,2]
[348663481,1736703044723,-931.68,9.82e-05,2]
[348663482,1736703044733,-1180.88,9.82e-05,2]
[348663483,1736703044742,-1157.34,9.82e-05,2]
[348663484,1736703044751,-1199.82,9.82e-05,2]
[348663485,1736703044825,-840.95,9.82e-05,2]
[348663486,1736703044835,-855.57,9.82e-05,2]
[348663487,1736703044845,-1855.45,9.82e-05,2]
[348663488,1736703044855,-1239.35,9.82e-05,2]
[348663489,1736703044864,-879.97,9.82e-05,2]
[348663490,1736703044874,-1510.22,9.82e-05,2]
[348663491,1736703044883,-1411.8,9.82e-05,2]
[348663492,1736703044893,-2123.72,9.82e-05,2]
[348663493,1736703044902,-1358.58,9.82e-05,2]
[348663494,1736703044912,-500.0,9.82e-05,2]
[348663495,1736703044921,-2079.2,9.82e-05,2]
[348663496,1736703044931,-2636.99,9.82e-05,2]
[348663497,1736703044940,-1021.95,9.82e-05,2]
[348663498,1736703044949,-4247.6,9.82e-05,2]
[348663499,1736703044959,-1316.2,9.82e-05,2]
[348663500,1736703044968,-995.58,9.82e-05,2]
[348663501,1736703044977,-5872.12,9.82e-05,2]
[348663502,1736703044986,-500.0,9.82e-05,2]
[348663503,1736703044995,-1593.67,9.82e-05,2]
[348663504,1736703045005,-1433.03,9.82e-05,2]
[348663505,1736703045015,-1000.0,9.82e-05,2]
[348663506,1736703045026,-3088.86,9.821e-05,2]
[348663507,1736703045035,-164.58964276,9.86e-05,2]
[348663508,1736703045045,-500.0,9.86e-05,2]
[348663509,1736703045055,-500.0,9.86e-05,2]
[348663510,1736703045065,-500.0,9.86e-05,2]
[348663511,1736703045074,-222.49438907,9.86e-05,2]
[348663512,1736703045086,-500.0,9.86e-05,2]
[348663513,1736703045096,-570.15,9.86e-05,2]
[348663514,1736703045106,-500.0,9.86e-05,2]
[348663515,1736703045116,-653.93,9.86e-05,2]
[348663516,1736703045126,-500.0,9.86e-05,2]
[348663517,1736703045135,-500.0,9.86e-05,2]
[348663518,1736703045146,-500.0,9.86e-05,2]
[348663519,1736703045155,-516.42,9.86e-05,2]
[348663520,1736703045165,-500.0,9.86e-05,2]
[348663521,1736703045176,-510.27,9.86e-05,2]
[348663522,1736703045188,-500.0,9.86e-05,2]